[Event "1st Semana Santa Torrevieja 2022"]
[Site "Torrevieja Alicante"]
[Date "2022.04.17"]
[Round "8.2"]
[White "Movsziszian, Karen"]
[Black "Moussard, Jules"]
[Result "0-1"]
[ECO "A14"]
[WhiteElo "2441"]
[BlackElo "2630"]
[Annotator "TA"]
[PlyCount "124"]
[EventDate "2022.04.12"]
[EventType "swiss"]
[EventCountry "ESP"]
[SourceTitle "playchess.com"]
[Source "ChessBase"]
[SourceQuality "1"]
[TimeControl "5400+30"]

{[%evp 12,124,14,12,15,3,0,0,2,0,0,0,0,-20,-31,-22,22,8,118,127,137,121,122,86,154,146,153,153,167,135,226,217,217,218,226,137,127,134,241,241,241,219,233,239,217,191,223,228,347,289,379,275,315,332,332,318,335,321,369,361,361,339,368,358,485,447,501,504,585,537,566,532,845,810,691,547,654,646,667,441,542,490,418,375,286,58,68,34,15,0,8,0,116,0,0,0,165,-27,-27,-27,-28,-182,-135,-306,-295,-303,-303,-278,-279,-295,-294,-337,-322,-294,-310]} 1. g3 {[%emt 0:00:14]} Nf6 {[%emt 0:00:07]} 2. Bg2 {[%emt 0:00:15]} d5 {[%emt 0:00:09]} 3. Nf3 {[%emt 0:00:33]} e6 {[%emt 0:00:19]} 4. O-O {[%emt 0:01:09]} Be7 {[%emt 0:00:05]} 5. c4 {[%emt 0:02:45]} O-O {[%emt 0:00:07]} 6. b3 {[%emt 0:01:43]} d4 {[%emt 0:00:34]} 7. e3 {[%emt 0:00:31]} c5 {[%emt 0:00:13] A14: English Opening: 1...e6 with b3 by White.} 8. exd4 {[%emt 0:00:30]} cxd4 {[%emt 0:00:06]} 9. d3 {[%emt 0:00:17]} Nc6 {[%emt 0:00:19] The position is equal.} 10. Re1 {[%emt 0:01:11] Against e5} Re8 {[%emt 0:00:56]} 11. a3 {[%emt 0:10:52]} a5 {[%emt 0:00:20] Prevents b4.} 12. Bg5 {[%emt 0:00:03]} h6 {[%emt 0:04:04]} 13. Bxf6 {[%emt 0:03:09] [#]} gxf6 $146 {[%emt 0:00:34]} ({Predecessor:} 13... Bxf6 14. Nbd2 e5 15. c5 Be6 16. Qc2 Rc8 17. Nc4 Bxc4 18. Qxc4 b6 19. b4 bxc5 20. bxc5 {1-0 (33) Gorovets,A (2480)-Nemcova,K (2296) Saint Louis 2013}) 14. Nbd2 {[%emt 0:01:33][%cal Bb1d2,Bd2f3,Bf3g5][%mdl 32]} Bd7 {[%emt 0:03:24] [#]} (14... Kg7 $11) 15. Nxd4 $1 $16 {[%emt 0:06:41][%mdl 512]} f5 {[%emt 0:02:09]} (15... Nxd4 16. Qg4+) 16. Nb5 {[%emt 0:04:20]} Bf6 {[%emt 0:02:43]} 17. Ra2 {[%emt 0:03:52]} Qb6 {[%emt 0:04:27]} (17... Ne7 $142) 18. Nf3 {[%emt 0:05:02]} Ne7 {[%emt 0:05:47]} 19. a4 {[%emt 0:01:03]} Rad8 {[%emt 0:01:57]} 20. Qd2 {[%emt 0:08:09]} Nc6 {[%emt 0:02:44]} (20... Bc6 $16 21. Qxh6 Bg7) 21. Qxh6 $18 {[%emt 0:01:12]} Bg7 {[%emt 0:00:09] [#]} 22. Qh5 {[%emt 0:06:09]} (22. Qg5 $6 Nb4 23. Rd2 Bxb5 $16) 22... Nb4 {[%emt 0:00:17] [#]} 23. Ng5 $1 {[%emt 0:05:06][%mdl 512]} Re7 {[%emt 0:02:43]} 24. Rd2 {[%emt 0:00:21]} Bxb5 {[%emt 0:04:44]} (24... e5 $16) 25. axb5 {[%emt 0:00:05][%cal Od3d4] Threatens to win with d4!} (25. cxb5 Qd4 26. Rc1 b6) 25... Qd4 {[%emt 0:06:35]} 26. Rc1 {[%emt 0:03:40] Inhibits Qc3.} b6 {[%emt 0:04:26]} 27. h4 {[%emt 0:00:05]} Red7 {[%emt 0:02:21]} 28. Bf1 {[%emt 0:08:57]} Qf6 {[%emt 0:12:01]} 29. d4 {[%emt 0:00:42]} f4 {[%emt 0:03:17]} (29... Qh6 {might work better.} 30. Qxh6 Bxh6) 30. Rcd1 {[%emt 0:02:35]} Bh6 {[%emt 0:12:39]} 31. Kh2 {[%emt 0:05:30][%cal Bg1h2,Bh2g3,Bg3h3][%mdl 32]} Kg7 {[%emt 0:05:31]} 32. Qg4 {[%emt 0:01:05][%csl LRe6,LRf4]} fxg3+ {[%emt 0:00:12]} 33. Kxg3 {[%emt 0:02:17]} ({Don't take} 33. Qxg3 $6 Bxg5 34. Qxg5+ Qxg5 35. hxg5 Rg8 $18) ({Don't play} 33. fxg3 $6 Qg6 34. Be2 Kh8 $18) 33... Kh8 {[%emt 0:01:36]} 34. f4 {[%emt 0:00:01]} Qg7 {[%emt 0:01:13]} 35. Kh3 {[%emt 0:00:38]} Kg8 {[%emt 0:00:45]} 36. Qh5 {[%emt 0:01:12]} Kf8 {[%emt 0:00:20]} 37. Bg2 {[%emt 0:01:51]} Ke7 {[%emt 0:00:53]} 38. d5 {[%emt 0:01:22]} exd5 {[%emt 0:00:29]} 39. cxd5 {[%emt 0:02:40][%cal Od5d6] Strongly threatening d6+!} Rd6 {[%emt 0:03:52]} 40. Re1+ {[%emt 0:01:21]} Kf8 {[%emt 0:00:03]} 41. Re5 {[%emt 0:00:15]} Qg6 {[%emt 0:03:44]} 42. Qg4 {[%emt 0:01:04]} Qg7 {[%emt 0:01:50]} 43. Rde2 {[%emt 0:04:16]} Nd3 {[%emt 0:00:39]} 44. Rf5 {[%emt 0:00:38]} Bxg5 {[%emt 0:00:26]} 45. Rxg5 {[%emt 0:00:20]} Rg6 {[%emt 0:02:37]} 46. Be4 {[%emt 0:00:13]} Rxg5 {[%emt 0:00:22]} 47. hxg5 {[%emt 0:00:06]} (47. Qxg5 $2 {too greedy.} Qxg5 48. fxg5 Nf4+ 49. Kg4 Nxe2 $19) 47... Nc5 {[%emt 0:00:35]} 48. Bf3 {[%emt 0:03:12]} (48. Bc2 $18) 48... Nxb3 $14 {[%emt 0:00:19]} 49. Kg3 {[%emt 0:01:15] And now Rc2 would win.} Nd4 {[%emt 0:01:22][%csl LRb5,LRe2] Inhibits Rc2.} 50. Rd2 {[%emt 0:00:07]} Nxb5 {[%emt 0:00:34]} 51. f5 {[%emt 0:00:08][%cal Bf4f5,Bf5f6][%mdl 32]} Qe5+ {[%emt 0:01:13]} (51... f6 $11) 52. Kg2 {[%emt 0:00:16]} (52. Qf4 $16 Qxf4+ 53. Kxf4) 52... Nd6 $11 {[%emt 0:00:26]} 53. f6 {[%emt 0:00:09]} Nf5 $2 {[%emt 0:01:00] [#]} (53... b5 $11) 54. Qh3 $2 {[%emt 0:00:20]} (54. Kh3 $1 $18 {aiming for Re2.} Nd6 55. Rh2) 54... Kg8 $36 {[%emt 0:00:40][%mdl 2048] Hoping for ...Qf4. Black is more active.} 55. Re2 {[%emt 0:02:13]} Qf4 {[%emt 0:00:14]} 56. Re4 $2 {[%emt 0:00:27]} (56. Kf2 $1 $11 {and White stays safe.} Nd4 57. Re3) 56... Qxg5+ $19 {[%emt 0:01:30]} 57. Kf2 $2 {[%emt 0:01:56]} (57. Qg4 $17 Qxg4+ 58. Rxg4+ Kf8 59. Rf4) 57... Qxf6 {[%emt 0:00:34] Black has a decisive advantage.} 58. Rf4 {[%emt 0:00:29]} Qb2+ {[%emt 0:00:03]} 59. Be2 {[%emt 0:00:04] [#]} Re8 $1 {[%emt 0:01:46]} 60. Qg4+ {[%emt 0:00:31]} (60. Qxf5 Qxe2+) 60... Ng7 {[%emt 0:00:02]} 61. d6 {[%emt 0:00:10]} Qd2 {[%emt 0:00:35]} 62. Rc4 {[%emt 0:02:05]} Qxd6 {[%emt 0:00:10] Never resign too early!  Weighted Error Value: White=0.20 (precise) /Black=0.38} 0-1

[Event "1st Semana Santa Torrevieja 2022"]
[Site "Torrevieja Alicante"]
[Date "2022.04.17"]
[Round "8.3"]
[White "Larino Nieto, David"]
[Black "Iturrizaga Bonelli, Eduardo"]
[Result "1/2-1/2"]
[ECO "A48"]
[WhiteElo "2440"]
[BlackElo "2595"]
[Annotator "TA"]
[PlyCount "30"]
[EventDate "2022.04.12"]
[EventType "swiss"]
[EventCountry "ESP"]
[SourceTitle "playchess.com"]
[Source "ChessBase"]
[SourceQuality "1"]
[TimeControl "5400+30"]

{[%evp 9,30,4,7,0,10,-12,12,4,6,-19,0,-5,6,12,22,7,13,0,0,0,0,-12,-14]} 1. Nf3 {[%emt 0:07:25]} g6 {[%emt 0:00:40]} 2. d4 {[%emt 0:00:23]} Nf6 {[%emt 0:00:08]} 3. c3 {[%emt 0:00:15]} Bg7 {[%emt 0:00:21]} 4. g3 {[%emt 0:00:18]} b6 {[%emt 0:07:34][%cal Bb7b6,Bb6b5][%mdl 32]} 5. Bg2 {[%emt 0:00:27]} Bb7 {[%emt 0:00:06] The position is equal.} 6. O-O {[%emt 0:00:05] A48: 1 d4 Nf6 2 Nf3 g6: Torre, London and Colle Systems.} O-O {[%emt 0:00:03]} 7. a4 {[%emt 0:00:07] [#]} a6 $146 {[%emt 0:06:02]} ({Predecessor:} 7... a5 8. Nbd2 d6 9. Qc2 Nbd7 10. e4 e5 11. Re1 Qe7 12. dxe5 Nxe5 13. Nxe5 Qxe5 {½-½ (49) Suarez Gomez,J (2474)-Oliva Castaneda,K (2497) Linares 2017}) 8. Nbd2 {[%emt 0:00:59][%cal Bb1d2,Bd2c4,Bc4e3][%mdl 32]} c5 {[%emt 0:00:59]} 9. Nc4 {[%emt 0:05:25]} b5 {[%emt 0:15:47]} 10. Ne3 {[%emt 0:04:59]} d6 {[%emt 0:08:28]} 11. dxc5 {[%emt 0:02:21]} dxc5 {[%emt 0:00:44]} 12. Qxd8 {[%emt 0:00:07]} Rxd8 {[%emt 0:00:05]} 13. axb5 {[%emt 0:00:17]} axb5 {[%emt 0:00:05]} 14. Rxa8 {[%emt 0:00:06]} Bxa8 {[%emt 0:00:04]} 15. Rd1 {[%emt 0:00:05]} Rxd1+ {[%emt 0:03:39] Not much happened in this game.  Weighted Error Value: White=0.07 (flawless) /Black=0.08 (flawless)} 1/2-1/2

[Event "1st Semana Santa Torrevieja 2022"]
[Site "Torrevieja Alicante"]
[Date "2022.04.17"]
[Round "8.4"]
[White "Dardha, Daniel"]
[Black "Vasquez Schroeder, Rodrigo"]
[Result "1/2-1/2"]
[ECO "E60"]
[WhiteElo "2541"]
[BlackElo "2493"]
[Annotator "TA"]
[PlyCount "107"]
[EventDate "2022.04.12"]
[EventType "swiss"]
[EventCountry "ESP"]
[SourceTitle "playchess.com"]
[Source "ChessBase"]
[SourceQuality "1"]
[TimeControl "5400+30"]

{[%evp 9,107,32,31,30,29,33,30,21,24,4,4,0,0,0,0,0,18,0,0,0,0,-3,0,0,8,3,28,22,61,61,56,58,104,71,70,22,81,81,91,93,95,89,89,62,47,50,70,24,35,53,79,42,52,58,67,64,174,180,177,183,199,179,197,172,276,264,264,227,648,503,461,432,425,412,446,419,410,405,399,400,460,240,246,93,128,0,0,0,0,0,0,0,0,0,0,0,0,0,0,0]} 1. d4 {[%emt 0:01:37]} Nf6 {[%emt 0:00:10]} 2. c4 {[%emt 0:00:04]} g6 {[%emt 0:00:12]} 3. h4 {[%emt 0:00:08]} d6 {[%emt 0:00:20]} 4. Nc3 {[%emt 0:00:17]} Nbd7 {[%emt 0:00:15]} 5. e4 {[%emt 0:01:22]} e5 {[%emt 0:00:11]} 6. d5 {[%emt 0:00:32] E60: King's Indian: Unusual lines and Fianchetto Variation without Nc3.} Nc5 {[%emt 0:00:35]} 7. Qc2 {[%emt 0:00:07]} a5 {[%emt 0:00:32]} 8. Be2 {[%emt 0:00:13] White has an edge.} h5 {[%emt 0:04:37]} 9. Nf3 {[%emt 0:02:49] [#]} Ng4 $146 {[%emt 0:02:52]} ({Predecessor:} 9... Bg4 10. Be3 Bxf3 11. Bxf3 Bh6 12. Bxh6 Rxh6 13. g3 a4 14. O-O-O Kf8 15. Rdg1 c6 {0-1 (39) Fedoseev,V (2677)-Giri,A (2769) Moscow 2019}) 10. Ng5 {[%emt 0:04:24]} f6 {[%emt 0:01:26]} 11. Nh3 {[%emt 0:01:44]} Bh6 {[%emt 0:02:10]} 12. Bxh6 {[%emt 0:03:26]} Nxh6 {[%emt 0:00:26]} 13. Qd2 {[%emt 0:00:43]} Qe7 {[%emt 0:02:56]} 14. O-O-O {[%emt 0:04:00]} Bd7 {[%emt 0:02:11]} 15. f3 {[%emt 0:02:54]} Nf7 {[%emt 0:21:06]} 16. Nf2 {[%emt 0:01:38]} b6 {[%emt 0:01:06]} 17. Rde1 {[%emt 0:02:53]} a4 {[%emt 0:04:14]} 18. Bd1 {[%emt 0:01:57]} Nd8 {[%emt 0:00:40]} 19. b4 {[%emt 0:14:39]} axb3 $1 {[%emt 0:00:53]} 20. axb3 {[%emt 0:01:20]} Nf7 {[%emt 0:07:25]} (20... Na6 $14 {was preferrable.}) 21. Kb2 {[%emt 0:03:35]} (21. b4 {is interesting.} Nb7 22. Kb2 f5 23. Reg1) 21... Na6 {[%emt 0:01:53]} 22. Nd3 {[%emt 0:00:47]} (22. g4 $14) 22... c5 {[%emt 0:01:07]} (22... Nc5 $11) 23. dxc6 $1 $16 {[%emt 0:03:22]} Bxc6 {[%emt 0:00:07]} 24. Bc2 {[%emt 0:02:30]} (24. b4 {with more complications.} Nc7 25. Bb3 Ne6 26. b5) 24... Qb7 {[%emt 0:07:21]} 25. Ra1 {[%emt 0:03:22]} Kf8 {[%emt 0:01:44]} 26. Ra3 {[%emt 0:18:54] &Bianco is more active.} (26. b4 {seems wilder.} b5 27. cxb5 Bxb5 28. Nxb5 Qxb5 29. Bb3) 26... Kg7 {[%emt 0:00:34]} 27. Rha1 $1 {[%emt 0:00:09]} Rhb8 {[%emt 0:02:07]} 28. Nc1 {[%emt 0:08:43]} ({Better is} 28. b4 $14 b5 29. cxb5 (29. Nxb5 Bxb5 30. cxb5 Nc7 $14) 29... Bxb5 30. Nxb5 Qxb5 31. Bb3) 28... Nc7 {[%emt 0:01:45]} (28... Nb4 {feels hotter.} 29. Bd3 Rxa3 30. Rxa3 Ra8) 29. Rxa8 {[%emt 0:01:32]} Nxa8 {[%emt 0:00:14]} 30. Qe3 {[%emt 0:01:37]} Nc7 {[%emt 0:00:33]} 31. Nd3 {[%emt 0:01:01][%cal Bc1d3,Bd3b4,Bb4c6][%mdl 32]} Na6 {[%emt 0:00:31]} 32. b4 {[%emt 0:06:51][%cal Bb3b4,Bb4b5][%mdl 32]} Nc7 {[%emt 0:02:26]} (32... b5 $14 33. c5 (33. Nxb5 Bxb5 34. cxb5 Qxb5 $15) 33... Rd8) 33. b5 $18 {[%emt 0:01:15]} Bd7 {[%emt 0:00:17]} 34. Nb4 {[%emt 0:00:14]} Ne6 {[%emt 0:02:24]} 35. Ncd5 {[%emt 0:00:01]} Nc5 {[%emt 0:00:22]} 36. f4 {[%emt 0:01:08] aiming for f5.} Rf8 {[%emt 0:01:41]} (36... Bg4 $142) 37. f5 {[%emt 0:00:29] And now Qg3 would win.} Nh6 {[%emt 0:02:45]} 38. fxg6 {[%emt 0:00:08][%cal Ob4c6] Hoping for Nc6!} Kxg6 $2 {[%emt 0:00:52]} (38... Be6 39. Qa3 Ng4) 39. Nc6 {[%emt 0:01:31]} Ng4 {[%emt 0:03:13]} 40. Qf3 {[%emt 0:00:13] Threatens to win with Ra7.} Ra8 {[%emt 0:00:54] Prevents Ra7.} 41. Rxa8 {[%emt 0:00:47]} Qxa8 {[%emt 0:00:11]} 42. Nxb6 {[%emt 0:00:08]} Qe8 {[%emt 0:00:48]} 43. Nxd7 {[%emt 0:00:25]} Nxd7 {[%emt 0:00:17]} 44. Bd1 {[%emt 0:02:21]} Qf7 {[%emt 0:02:03]} 45. Bb3 {[%emt 0:02:37]} (45. Qf5+ $142 Kh6 46. Bxg4 hxg4 47. h5 (47. Qxg4 Qxc4 48. Qxd7 Qxb5+ 49. Kc3 Qc5+ 50. Kd3 Qa3+ 51. Ke2 Qa4 $18)) 45... Nc5 {[%emt 0:00:12] [#]} 46. Qf5+ {[%emt 0:00:24]} (46. Nb4 $1 $18 {and the rest is easy.}) 46... Kg7 $16 {[%emt 0:00:52] [#]} 47. Nd8 {[%emt 0:01:02]} (47. Kc3 $1 $16) 47... Qa7 $1 $11 {[%emt 0:03:47] The position is equal.} 48. Nc6 {[%emt 0:01:53]} Nd3+ {[%emt 0:01:10] Pair of Knights!} 49. Kc3 {[%emt 0:00:11]} Qa3 {[%emt 0:00:36]} 50. Qd7+ {[%emt 0:00:41]} ({Avoid the trap} 50. Qxh5 $2 Ngf2 51. Qg4+ Nxg4 $19) 50... Kh6 {[%emt 0:00:13] ( -> ...Ngf2)} 51. Qf7 {[%emt 0:00:40]} Qb2+ {[%emt 0:00:49]} (51... Nc5 $5 52. Qf8+ Kh7 53. Qf7+ Kh6 54. Qf8+ Kh7 55. Qf7+ Kh6 $11) 52. Kxd3 {[%emt 0:00:01][%cal Oc4c5] c5! is the strong threat. Chess con chili.} Qxb3+ {[%emt 0:00:28]} 53. Kd2 {[%emt 0:00:01]} Qb2+ {[%emt 0:01:11]} 54. Kd3 {[%emt 0:00:46] Black defended with fortune.  Weighted Error Value: White=0.22 (precise) /Black=0.19 (very precise)} 1/2-1/2

[Event "1st Semana Santa Torrevieja 2022"]
[Site "Torrevieja Alicante"]
[Date "2022.04.17"]
[Round "8.5"]
[White "Moral Garcia, Serafin"]
[Black "Chatalbashev, Boris"]
[Result "1/2-1/2"]
[ECO "B30"]
[WhiteElo "2214"]
[BlackElo "2515"]
[Annotator "TA"]
[PlyCount "132"]
[EventDate "2022.04.12"]
[EventType "swiss"]
[EventCountry "ESP"]
[SourceTitle "playchess.com"]
[Source "ChessBase"]
[SourceQuality "1"]
[TimeControl "5400+30"]

{[%evp 13,132,26,21,0,-1,-17,-10,-22,-18,-22,-14,-18,-6,-22,-6,-35,-24,-25,-29,-29,-8,-8,0,0,-10,-2,0,0,0,0,0,0,21,0,19,-6,25,0,0,0,0,0,0,0,-3,-18,-18,-14,0,0,0,0,0,0,72,73,73,74,74,72,77,19,19,20,21,21,21,3,3,0,0,0,0,0,0,0,0,0,0,0,0,0,0,0,0,0,0,0,0,0,0,0,0,0,0,0,0,0,0,0,0,0,0,0,0,0,0,0,0,0,0,0,0,0,0,0,0,0,0,0,0]} 1. e4 {[%emt 0:00:04]} c5 {[%emt 0:00:06]} 2. Nf3 {[%emt 0:00:20]} Nc6 {[%emt 0:00:04]} 3. Bb5 {[%emt 0:00:31]} e6 {[%emt 0:00:07]} 4. O-O {[%emt 0:00:38]} Nge7 {[%emt 0:00:05]} 5. Re1 {[%emt 0:00:29]} Nd4 {[%emt 0:01:03]} 6. Nxd4 {[%emt 0:01:16]} cxd4 {[%emt 0:00:05]} 7. c3 $1 {[%emt 0:02:07] The main line 7.c3 scores better than 7.d3.} a6 {[%emt 0:00:06]} 8. Ba4 {[%emt 0:01:03] B30: Sicilian: 2...Nc6 3 Bb5, lines without ...g6.} b5 {[%emt 0:02:04]} 9. Bb3 {[%emt 0:01:31]} Nc6 $1 {[%emt 0:00:05]} 10. d3 {[%emt 0:01:31]} Bc5 {[%emt 0:01:37]} 11. Nd2 {[%emt 0:05:30]} Qb6 {[%emt 0:03:08] White must now prevent ...dxc3.} 12. Qe2 {[%emt 0:02:19]} O-O {[%emt 0:02:18]} 13. Nf3 {[%emt 0:03:05]} (13. a4 $5 {[%cal Ra4b5]}) 13... Bb7 {[%emt 0:01:02] [#]} 14. cxd4 $146 {[%emt 0:02:57]} ({Predecessor:} 14. a4 Rae8 15. Bd2 f5 16. e5 b4 17. Bc4 f4 18. Rab1 Ba8 19. Rec1 Rf5 20. h3 b3 21. Re1 Ref8 22. h4 Rh5 23. Qf1 Na5 {0-1 (23) Kudryavtsev,Y (2046)-Harney,T (2028) LSS email 2012}) 14... Nxd4 {[%emt 0:03:39]} 15. Nxd4 {[%emt 0:00:02]} Bxd4 {[%emt 0:00:08]} 16. Be3 {[%emt 0:03:10]} f5 {[%emt 0:09:41]} 17. f3 {[%emt 0:02:04]} a5 {[%emt 0:05:03]} 18. Bxd4 {[%emt 0:10:30]} Qxd4+ {[%emt 0:00:07]} 19. Qf2 {[%emt 0:00:27]} Qxf2+ {[%emt 0:04:01]} (19... Qxd3 $2 20. Red1 fxe4 21. Rxd3 exd3 22. a4 $18) 20. Kxf2 {[%emt 0:00:02]} a4 {[%emt 0:00:27]} 21. Bc2 {[%emt 0:02:53]} b4 {[%emt 0:04:21]} 22. Rac1 {[%emt 0:02:45]} Bc6 {[%emt 0:05:49]} 23. d4 {[%emt 0:08:22]} g6 {[%emt 0:10:17]} 24. Bd3 {[%emt 0:02:19]} Ra5 {[%emt 0:00:26]} 25. Rc5 {[%emt 0:04:45]} (25. Ke3 {is interesting.} Kf7 26. d5 fxe4 27. dxc6 exd3 28. cxd7 Ke7 29. Kxd3 Rd5+ 30. Ke3) 25... Rxc5 {[%emt 0:05:41]} 26. dxc5 $11 {[%emt 0:00:01][%mdl 4096] Endgame KRB-KRB} f4 {[%emt 0:04:27]} 27. Rc1 {[%emt 0:06:00]} Kg7 {[%emt 0:02:08]} 28. Rc4 {[%emt 0:02:31]} Rb8 {[%emt 0:00:02]} 29. e5 {[%emt 0:03:02]} Bd5 {[%emt 0:05:32]} 30. Rd4 {[%emt 0:00:01]} g5 {[%emt 0:02:17]} 31. Be4 {[%emt 0:03:52]} Bxe4 {[%emt 0:01:09]} 32. Rxd7+ {[%emt 0:02:41]} Kg6 {[%emt 0:00:04]} 33. fxe4 {[%emt 0:00:07] KR-KR} b3 {[%emt 0:00:04] [#]} (33... Rc8 $11 {remains equal.}) 34. axb3 $1 $16 {[%emt 0:01:04]} Rxb3 {[%emt 0:00:52]} 35. Rd2 {[%emt 0:00:16] Hoping for c6.} a3 {[%emt 0:01:10]} 36. bxa3 {[%emt 0:00:02] aiming for Rc2.} Rc3 {[%emt 0:00:03] Against Rc2} 37. a4 {[%emt 0:01:27]} (37. Rd6 $16) 37... Rxc5 $11 {[%emt 0:00:05] The position is equal.} 38. Ra2 {[%emt 0:00:08] [#] Strongly threatening a5.} Ra5 {[%emt 0:00:12]} 39. Kf3 {[%emt 0:00:47]} h6 {[%emt 0:01:40][%cal Bh7h6,Bh6h5][%mdl 32]} 40. g3 {[%emt 0:05:27]} fxg3 {[%emt 0:00:13]} 41. hxg3 {[%emt 0:00:03]} h5 {[%emt 0:00:44]} 42. Ke3 {[%emt 0:01:45]} Kh6 {[%emt 0:01:01]} 43. Kf3 {[%emt 0:04:39]} Kg6 {[%emt 0:00:02]} 44. Ra3 {[%emt 0:00:46]} Kh6 {[%emt 0:00:13]} 45. g4 {[%emt 0:01:33]} hxg4+ {[%emt 0:03:44]} 46. Kxg4 {[%emt 0:00:09]} Rxe5 {[%emt 0:00:23]} 47. Kf3 {[%emt 0:01:17] Threatens to win with a5.} Ra5 {[%emt 0:00:05]} 48. Kg4 {[%emt 0:00:25]} Kg6 {[%emt 0:00:29]} 49. Kf3 {[%emt 0:00:31]} Kf6 {[%emt 0:00:35]} 50. Ra1 {[%emt 0:00:09]} Ke5 {[%emt 0:01:35]} 51. Ra2 {[%emt 0:00:29]} Kd4 {[%emt 0:02:27]} 52. Rd2+ {[%emt 0:01:30]} Ke5 {[%emt 0:00:14]} 53. Ra2 {[%emt 0:00:01]} g4+ {[%emt 0:01:19]} 54. Kxg4 {[%emt 0:01:07]} Kxe4 {[%emt 0:00:06]} 55. Re2+ {[%emt 0:00:07]} Kd5 {[%emt 0:00:09]} 56. Rd2+ {[%emt 0:00:03]} Ke5 {[%emt 0:00:17]} 57. Re2+ {[%emt 0:00:02]} Kf6 {[%emt 0:00:41]} 58. Ra2 {[%emt 0:00:03]} e5 {[%emt 0:00:44][%cal Be6e5,Be5e4][%mdl 32]} 59. Kf3 {[%emt 0:00:09]} Kf5 {[%emt 0:00:09]} 60. Ke3 {[%emt 0:00:02]} e4 {[%emt 0:00:45]} 61. Ra1 {[%emt 0:00:01]} Ke5 {[%emt 0:00:08]} 62. Ra2 {[%emt 0:00:06]} Kd5 {[%emt 0:04:25]} 63. Rd2+ {[%emt 0:01:30]} Kc4 {[%emt 0:00:30]} 64. Rd4+ {[%emt 0:00:02]} Kb3 {[%emt 0:00:09]} 65. Kxe4 {[%emt 0:00:06]} Rxa4 {[%emt 0:00:04]} 66. Rxa4 {[%emt 0:00:08]} Kxa4 {[%emt 0:00:02] Weighted Error Value: White=0.07 (flawless) /Black=0.06 (flawless)} 1/2-1/2

[Event "1st Semana Santa Torrevieja 2022"]
[Site "Torrevieja Alicante"]
[Date "2022.04.17"]
[Round "8.6"]
[White "Nasuta, Grzegorz"]
[Black "Vrolijk, Liam"]
[Result "1/2-1/2"]
[ECO "C69"]
[WhiteElo "2530"]
[BlackElo "2480"]
[Annotator "TA"]
[PlyCount "75"]
[EventDate "2022.04.12"]
[EventType "swiss"]
[EventCountry "ESP"]
[SourceTitle "playchess.com"]
[Source "ChessBase"]
[SourceQuality "1"]
[TimeControl "5400+30"]

{[%evp 29,75,10,11,0,6,0,4,0,19,7,16,23,28,15,27,23,36,36,31,9,37,0,0,0,0,0,0,-20,0,0,0,0,0,0,0,0,0,0,0,0,0,0,0,0,0,0,0,0]} 1. e4 {[%emt 0:00:02]} e5 {[%emt 0:00:25]} 2. Nf3 {[%emt 0:00:06]} Nc6 {[%emt 0:00:05]} 3. Bb5 {[%emt 0:00:09]} a6 {[%emt 0:01:03]} 4. Bxc6 {[%emt 0:00:13]} dxc6 {[%emt 0:00:11]} 5. O-O {[%emt 0:00:07]} f6 {[%emt 0:03:46]} 6. d4 {[%emt 0:00:35]} exd4 {[%emt 0:00:16]} 7. Nxd4 {[%emt 0:00:31]} c5 {[%emt 0:04:35]} 8. Nb3 {[%emt 0:00:21]} Qxd1 {[%emt 0:09:14]} 9. Rxd1 {[%emt 0:00:16]} Bd7 {[%emt 0:09:45]} 10. Nc3 {[%emt 0:00:21]} O-O-O {[%emt 0:00:49]} 11. Bf4 {[%emt 0:00:19]} Be6 {[%emt 0:03:34]} 12. Rxd8+ {[%emt 0:02:17]} Kxd8 {[%emt 0:00:46]} 13. Rd1+ {[%emt 0:00:08]} Kc8 {[%emt 0:00:08]} 14. Nd5 {[%emt 0:00:05]} Bxd5 {[%emt 0:01:13]} 15. Rxd5 {[%emt 0:00:03]} b6 {[%emt 0:01:44]} 16. Nd2 {[%emt 0:00:41] C69: Ruy Lopez: Exchange Variation with 5 0-0 f6.} Ne7 {[%emt 0:01:17]} 17. Rd3 {[%emt 0:00:09]} Nc6 {[%emt 0:02:09]} 18. c3 {[%emt 0:00:32] Against Nd4} Be7 {[%emt 0:02:02] [#]} 19. h4 $146 {[%emt 0:10:06]} ({Predecessor:} 19. Kf1 Rd8 20. Rxd8+ Kxd8 21. Be3 Kd7 22. f4 Ke6 23. b3 g5 24. g3 h5 25. Ke2 {1-0 (35) Semenov,N (2183)-Gerard,A (1810) ICCF email 2018}) 19... Rd8 {[%emt 0:03:30]} 20. Rxd8+ {[%emt 0:00:13]} Kxd8 $11 {[%emt 0:00:32][%mdl 4096] Endgame KBN-KBN} 21. Kf1 {[%emt 0:24:20]} Kd7 {[%emt 0:01:55]} 22. Ke2 {[%emt 0:01:10]} Bd6 {[%emt 0:02:00]} 23. Be3 {[%emt 0:00:45]} h5 {[%emt 0:03:09]} 24. f3 {[%emt 0:19:49]} Ke6 {[%emt 0:09:48]} 25. Bf2 {[%emt 0:01:29]} g6 {[%emt 0:02:53] The position is equal.} 26. Nc4 {[%emt 0:10:08]} f5 {[%emt 0:04:14]} 27. exf5+ {[%emt 0:13:00]} gxf5 {[%emt 0:01:18]} 28. Ke3 {[%emt 0:03:42]} b5 {[%emt 0:06:37]} 29. Nxd6 {[%emt 0:08:54]} cxd6 {[%emt 0:00:07] KB-KN} 30. g4 {[%emt 0:02:16]} fxg4 {[%emt 0:01:34]} 31. fxg4 {[%emt 0:00:01]} hxg4 {[%emt 0:00:24]} 32. Kf4 {[%emt 0:00:04]} Kf6 {[%emt 0:00:41]} 33. h5 {[%emt 0:00:11]} Ne5 {[%emt 0:01:15] [#] aiming for ...Nd3+.} 34. Bh4+ {[%emt 0:00:06]} Kg7 {[%emt 0:01:00] ...Kh6 is the strong threat.} 35. Be7 {[%emt 0:02:14]} Nd3+ {[%emt 0:03:08]} 36. Kxg4 {[%emt 0:00:04]} Nxb2 {[%emt 0:00:08]} 37. Bxd6 {[%emt 0:00:04]} Na4 {[%emt 0:01:19]} 38. a3 {[%emt 0:01:11] Weighted Error Value: White=0.05 (flawless) /Black=0.05 (flawless)} 1/2-1/2